bitfinex-derivatives/quotes_SOLF0:USTF0_20250124
["timestamp","ask_amount","ask_price","bid_price","bid_amount"]
[1737687864704,0.03039135,250.59,250.53,15.72540057]
[1737687865109,0.03039135,250.59,250.56,3.9915]
[1737687865307,0.03039135,250.59,250.53,15.72540057]
[1737687870010,3.9918,250.55,250.53,0.02687785]
[1737687870311,0.03039135,250.59,250.53,0.02687785]
[1737687870713,4.02169135,250.59,250.53,0.02687785]
[1737687870910,0.03039135,250.59,250.53,0.02687785]
[1737687871907,0.03039135,250.59,250.41,2.6924]
[1737687872208,0.03039135,250.59,250.37,15.69852272]
[1737687872209,2.4764,250.62,250.37,15.69852272]
[1737687872612,15.69852272,250.58,250.37,15.69852272]
[1737687872811,2.6598,250.57,250.38,3.9944]
[1737687873314,2.6598,250.57,250.37,15.69852272]
[1737687873315,0.02607302,250.5,250.45,0.02629765]
[1737687873809,3.9928,250.49,250.45,0.02629765]
[1737687874007,0.02607302,250.5,250.32,15.69852272]
[1737687874214,2.5533,250.48,250.32,15.69852272]
[1737687875315,0.02895438,250.43,250.37,0.03035869]
[1737687875513,4.02275438,250.43,250.37,0.03035869]
[1737687875710,0.02895438,250.43,250.37,0.03035869]
[1737687876214,0.02895438,250.43,250.24,5.2822]
[1737687876414,15.7274771,250.43,250.22,15.69852272]
[1737687876621,15.69852272,250.38,250.21,10.39111559]
[1737687877119,15.69852272,250.38,250.17,15.69852272]
[1737687877313,15.69852272,250.38,250.21,3.9971]
[1737687877516,0.0258493,250.3,250.25,0.02796719]
[1737687878522,0.0258493,250.3,250.25,6.719e-05]
[1737687878723,3.9964,250.26,250.25,6.719e-05]
[1737687881626,4.3575,250.27,250.03,2.5907]
[1737687881819,15.69852272,250.23,250.02,15.69852272]
[1737687882328,15.69852272,250.23,250.02,19.69872272]
[1737687882525,15.69852272,250.23,250.02,15.69852272]
[1737687882724,15.69852272,250.23,250.06,3.9995]
[1737687882929,0.02931072,250.15,250.1,0.02676833]
[1737687884630,0.02931072,250.15,250.1,4.02556833]
[1737687885026,0.02931072,250.15,250.1,0.02676833]
[1737687885428,0.02931072,250.15,250.1,6.833e-05]
[1737687885933,3.9987,250.12,250.1,6.833e-05]
[1737687886629,3.9984,250.14,250.1,6.833e-05]
[1737687887028,0.02931072,250.15,250.1,6.833e-05]
[1737687888231,3.9983,250.14,250.1,6.833e-05]
[1737687888833,3.9988,250.12,250.1,6.833e-05]
[1737687889031,18.33792272,250.11,249.86,25.49762272]
[1737687889333,4.0011,249.97,249.9,4.002]
[1737687889634,18.33792272,250.11,249.86,25.49762272]
[1737687890329,15.69852272,250.06,249.86,21.14422272]
[1737687890530,0.02547589,250.01,249.96,0.02628628]
[1737687891428,4.0009,249.98,249.96,8.628e-05]
[1737687891933,4.0009,249.98,249.8,4.3534]
[1737687891934,4.0027,249.87,249.77,4.0041]
[1737687892125,4.1301,250.0,249.71,125.42785823]
[1737687892126,15.69852272,249.93,249.73,7.081]
[1737687893937,0.02872217,249.85,249.81,0.02936473]
[1737687894135,0.02872217,249.85,249.83,4.0032]
[1737687894331,15.69852272,250.03,249.76,15.69852272]
[1737687894536,15.69852272,250.03,249.81,15.69852272]
[1737687895035,4.0008,249.99,249.81,15.69852272]
[1737687895236,15.69852272,250.03,249.81,15.69852272]
[1737687895630,0.02585615,249.92,249.88,0.02711603]
[1737687896037,0.02585615,249.92,249.9,4.002]
[1737687896336,15.69852272,250.03,249.88,0.02711603]
[1737687896537,4.0001,250.03,249.92,4.0017]
[1737687896736,4.3947,250.11,249.91,15.69852272]
[1737687896936,13.49515321,250.37,249.91,15.69852272]
[1737687896937,5.1335,250.18,249.92,4.1882]
[1737687897128,9.5282,250.18,249.92,4.1882]
[1737687897333,3.9987,250.12,250.02,4.0002]
[1737687897734,0.02671889,250.07,250.01,0.02664457]
[1737687898137,0.02671889,250.07,249.93,25.66014137]
[1737687898332,0.02671889,250.07,250.01,0.0280639]
[1737687898938,4.0003,250.02,250.01,0.0280639]
[1737687899441,4.02621889,250.07,250.01,0.0280639]
[1737687899644,0.02671889,250.07,250.01,0.0280639]
[1737687900037,4.0,250.04,250.01,0.0280639]
[1737687900344,0.02671889,250.07,250.01,0.0280639]
[1737687900539,0.02671889,250.07,249.89,2.483]
[1737687900540,29.71274137,250.06,249.89,2.483]
[1737687900734,34.76014137,250.06,249.9,4.0021]
[1737687900936,25.66014137,250.02,249.83,25.66014137]
[1737687901137,4.0021,249.91,249.84,4.0031]
[1737687901344,25.66014137,250.02,249.84,4.0031]
[1737687901540,25.66014137,249.97,249.81,2.483]
[1737687901747,4.0025,249.88,249.81,2.483]
[1737687902045,4.0025,249.88,249.87,0.02600676]
[1737687902246,4.003,249.85,249.79,2.6311]
[1737687902546,0.02597108,249.87,249.79,2.6311]
[1737687902742,4.02867108,249.87,249.79,2.6311]
[1737687902942,0.02597108,249.87,249.79,2.6311]
[1737687903446,4.02867108,249.87,249.81,0.02788679]
[1737687903638,0.02597108,249.87,249.81,0.02788679]
[1737687903843,0.02597108,249.87,249.68,25.66014137]
[1737687904047,4.0041,249.78,249.68,25.66014137]
[1737687904347,0.02597108,249.87,249.68,25.66014137]
[1737687904348,25.66014137,249.87,249.68,25.66014137]
[1737687904543,25.66014137,249.87,249.67,4.0058]
[1737687904743,25.66014137,249.87,249.63,25.66014137]
[1737687905145,0.03035707,249.79,249.75,0.03017884]
[1737687906851,5.707e-05,249.79,249.75,0.03017884]
[1737687907051,5.707e-05,249.79,249.77,4.0041]
[1737687907647,5.707e-05,249.79,249.78,25.66014137]
[1737687907852,5.707e-05,249.79,249.78,29.89454137]
[1737687908355,5.296,250.02,249.78,29.89454137]
[1737687908556,5.296,250.02,249.85,25.66014137]
[1737687908751,5.296,250.02,249.86,5.0396]
[1737687909452,0.02739316,249.96,249.92,0.02819018]
[1737687911653,4.0015,249.94,249.92,0.02819018]
[1737687911956,0.02739316,249.96,249.8,25.66014137]
[1737687912159,0.02739316,249.96,249.79,2.4988]
[1737687912359,25.66014137,249.98,249.8,4.0037]
[1737687912657,25.66014137,249.98,249.79,2.4988]
[1737687912955,25.66014137,249.98,249.82,4.0034]
[1737687913159,0.02788107,249.91,249.86,0.03030994]
[1737687914459,0.02788107,249.91,249.89,4.0023]
[1737687915955,0.02788107,249.91,249.86,0.03030994]
[1737687917758,0.02788107,249.91,249.87,4.0026]
[1737687918060,4.3978,250.06,249.86,0.03030994]
[1737687918260,4.3978,250.06,249.9,25.66014137]
[1737687918456,8.3975,250.06,249.98,4.0008]
[1737687918653,8.3975,250.06,249.91,2.6488]
[1737687918654,4.3978,250.06,249.91,2.6488]
[1737687919254,4.3978,250.06,249.96,0.02748188]
[1737687919453,0.02596374,250.01,249.96,0.02748188]
[1737687919659,24.2607106,250.04,249.81,24.2607106]
[1737687919863,5.2715,250.05,249.79,2.6488]
[1737687919864,14.93391982,250.01,249.79,2.6488]
[1737687920062,14.96469015,250.01,249.79,2.6488]
[1737687920264,14.93391982,250.01,249.8,4.0036]
[1737687920454,0.73541557,250.0,249.8,4.0036]
[1737687920659,14.93391982,250.01,249.8,4.0036]
[1737687920859,14.93391982,250.01,249.71,109.72933551]
[1737687920860,14.93391982,249.96,249.73,14.93391982]
[1737687921260,0.03028766,249.87,249.82,0.03040518]
[1737687923262,0.03028766,249.87,249.68,14.93391982]
[1737687923564,14.93391982,249.86,249.64,2.7051]
[1737687924561,0.03047097,249.77,249.64,2.7051]
[1737687926562,4.0049,249.74,249.61,4.0067]
[1737687926761,6.696,249.81,249.59,14.93391982]
[1737687926958,0.02684141,249.7,249.59,14.93391982]
[1737687927157,4.0059,249.67,249.59,14.93391982]
[1737687927666,0.02684141,249.7,249.59,14.93391982]
[1737687927861,4.0056,249.69,249.61,4.0067]
[1737687928066,0.02684141,249.7,249.57,14.7827245]
[1737687928258,14.7827245,249.8,249.57,14.7827245]
[1737687928464,6.696,249.81,249.62,14.7827245]
[1737687929367,6.696,249.81,249.65,4.006]
[1737687929561,14.7827245,249.8,249.62,14.7827245]
[1737687929760,0.02919248,249.75,249.71,6.99e-05]
[1737687929965,4.0059,249.67,249.59,4.0071]
[1737687930564,4.0059,249.67,249.57,14.7827245]
[1737687930765,17.3483245,249.8,249.57,14.7827245]
[1737687930963,0.02875849,249.64,249.57,14.7827245]
[1737687931260,2.5656,249.8,249.64,4.0062]
[1737687931668,2.5656,249.8,249.62,14.7827245]
[1737687931867,2.5656,249.8,249.67,4.0058]
[1737687932065,4.0049,249.73,249.67,4.0058]
[1737687932567,0.02845783,249.72,249.68,0.02870551]
[1737687932760,4.03355783,249.72,249.68,0.02870551]
[1737687932963,0.02845783,249.72,249.68,0.02870551]
[1737687933566,4.0055,249.69,249.68,0.02870551]
[1737687934868,0.02845783,249.72,249.68,0.02870551]
[1737687935367,4.0055,249.7,249.68,0.02870551]
[1737687935566,0.02845783,249.72,249.68,0.02870551]
[1737687937662,0.02845783,249.72,249.68,4.03430551]
[1737687937862,0.02845783,249.72,249.68,0.02870551]
[1737687939766,4.0054,249.7,249.68,0.02870551]
[1737687940469,0.02845783,249.72,249.68,0.02870551]
[1737687940873,0.02845783,249.72,249.68,4.03420551]
[1737687941069,0.02845783,249.72,249.68,0.02870551]
[1737687941265,2.5202,249.9,249.68,0.02870551]
[1737687941466,4.0029,249.86,249.75,14.7827245]
[1737687941771,3.995,249.89,249.71,14.7827245]
[1737687942067,4.0038,249.8,249.72,4.0049]
[1737687942271,3.995,249.89,249.72,4.0049]
[1737687942468,0.03071252,249.78,249.74,0.02731247]
[1737687942770,4.0039,249.8,249.72,4.005]
[1737687942971,0.02694498,249.78,249.74,0.02950387]
[1737687943464,0.02694498,249.78,249.74,0.02924506]
[1737687943465,0.02565412,249.78,249.74,0.02924506]
[1737687946169,0.02565412,249.78,249.76,4.0043]
[1737687946671,3.995,249.89,249.74,0.02924506]
[1737687946867,2.7184,249.94,249.82,4.0034]
[1737687947071,2.7184,249.94,249.76,14.7827245]
[1737687947271,4.0022,249.9,249.77,2.6615]
[1737687947469,2.7184,249.94,249.82,4.0033]
[1737687947673,4.0016,249.94,249.8,14.7827245]
[1737687947871,0.03061835,249.9,249.86,0.02667491]
[1737687948175,4.0892,249.99,249.86,0.02667491]
[1737687948675,14.7827245,250.08,249.89,14.7827245]
[1737687948871,4.0892,250.06,249.89,14.7827245]
[1737687949172,4.0892,250.06,249.93,14.7827245]
[1737687949471,6.5685,250.1,249.99,4.0006]
[1737687949678,6.5685,250.1,249.97,14.7827245]
[1737687949679,0.02618293,250.02,249.97,14.81037977]
[1737687949865,0.02618293,250.02,249.97,0.02765527]
[1737687950066,0.02618293,250.02,249.99,4.0007]
[1737687950269,6.624,250.15,249.98,14.7827245]
[1737687950775,3.9983,250.14,249.98,14.7827245]
[1737687950967,6.624,250.15,249.98,14.7827245]
[1737687951372,6.624,250.15,250.04,0.02877846]
[1737687951573,0.03021037,250.09,250.04,0.02877846]
[1737687951976,4.02941037,250.09,250.04,0.02877846]
[1737687952178,0.03021037,250.09,250.04,0.02877846]
[1737687954178,3.9994,250.08,250.04,0.02877846]
[1737687954373,0.03021037,250.09,250.04,0.02877846]
[1737687954573,3.9995,250.07,250.04,0.02877846]
[1737687954772,0.03021037,250.09,250.04,0.02877846]
[1737687955573,3.9993,250.08,250.04,0.02877846]
[1737687955772,0.03021037,250.09,250.04,0.02877846]
[1737687956381,0.03021037,250.09,249.91,4.0601]
[1737687956382,0.03021037,250.09,249.89,14.7827245]
[1737687956879,6.6562,250.1,249.89,14.7827245]
[1737687957080,14.7827245,250.07,249.88,5.1199]
[1737687957475,4.0021,249.91,249.88,2.627]
[1737687957781,0.02580486,250.0,249.84,14.7827245]
[1737687957981,4.0026,249.88,249.87,0.02871635]
[1737687958376,4.0026,249.88,249.82,2.4929]
[1737687958681,4.0027,249.87,249.85,0.02692393]
[1737687959481,4.0037,249.81,249.76,14.7827245]
[1737687959682,0.02909903,249.88,249.76,14.7827245]
[1737687959877,6.849,249.93,249.76,14.7827245]
[1737687960078,4.003,249.85,249.76,14.7827245]
[1737687960277,6.849,249.93,249.76,14.7827245]
[1737687960680,0.02680957,249.87,249.71,14.7827245]
[1737687961078,14.7827245,249.9,249.71,14.7827245]
[1737687961583,2.5329,249.89,249.71,14.7827245]
[1737687961784,4.0046,249.75,249.71,14.7827245]
[1737687962280,4.0051,249.72,249.66,14.7827245]
[1737687962579,14.7827245,249.82,249.71,0.02676104]
[1737687962983,4.0058,249.68,249.58,14.7827245]
[1737687963184,14.7827245,249.82,249.58,14.7827245]
[1737687963185,0.02596454,249.79,249.58,14.7827245]
[1737687963481,4.0064,249.64,249.58,14.7827245]
[1737687963983,14.7827245,249.82,249.58,14.7827245]
[1737687964184,4.0065,249.63,249.58,14.7827245]
[1737687964788,4.03701145,249.63,249.58,14.80943118]
[1737687964989,0.03051145,249.63,249.58,14.80943118]
[1737687965886,4.03711145,249.63,249.58,14.80943118]
[1737687966187,0.03051145,249.63,249.58,0.02670668]
[1737687966383,4.03711145,249.63,249.58,0.02670668]
[1737687966985,4.007,249.6,249.58,0.02670668]
[1737687968593,0.03051145,249.63,249.58,0.02670668]
[1737687970491,4.007,249.6,249.58,0.02670668]
[1737687971497,0.03051145,249.63,249.58,0.02670668]
[1737687971795,0.00348836,249.63,249.61,14.7827245]
[1737687971997,9.592,249.77,249.61,14.7827245]
[1737687972293,24.3747245,249.77,249.53,14.7827245]
[1737687973296,0.02686167,249.67,249.63,0.02689658]
[1737687973596,24.3747245,249.77,249.63,0.02689658]
[1737687973993,4.0063,249.64,249.63,0.02689658]
[1737687976396,4.03234033,249.66,249.63,0.02689658]
[1737687976797,0.02624033,249.66,249.63,0.02689658]
[1737687980704,0.02624033,249.66,249.64,14.7741479]
[1737687980908,0.02624033,249.66,249.63,0.02689658]
[1737687981410,4.0062,249.65,249.63,0.02689658]
[1737687982115,4.0062,249.65,249.51,14.7741479]
[1737687982116,0.02624033,249.66,249.51,14.7741479]
[1737687982306,4.0075,249.57,249.51,14.7741479]
[1737687982503,4.1861,249.65,249.51,14.7741479]
[1737687983013,14.7741479,249.74,249.55,14.7741479]
[1737687983211,4.2096,249.73,249.55,14.7741479]
[1737687983507,0.02897433,249.67,249.62,0.0266534]
[1737687985108,0.02897433,249.67,249.5,14.7741479]
[1737687985308,4.2096,249.73,249.5,14.7741479]
[1737687985709,4.0075,249.57,249.5,14.7741479]
[1737687985904,4.2096,249.73,249.5,14.7741479]
[1737687986212,4.0075,249.57,249.5,14.7741479]
[1737687986612,0.03048582,249.56,249.5,18.7825479]
[1737687986813,4.2096,249.73,249.54,14.7741479]
[1737687987012,0.02618229,249.55,249.54,14.7741479]
[1737687987206,4.0067,249.62,249.55,4.0077]
[1737687987409,4.0067,249.62,249.54,14.7741479]
[1737687987410,4.2096,249.73,249.54,14.7741479]
[1737687987916,4.0073,249.58,249.51,6.6359]
[1737687988413,0.02886524,249.57,249.52,0.02564341]
[1737687991914,4.0079,249.55,249.52,0.02564341]
[1737687993315,4.0081,249.53,249.52,0.02564341]
[1737687994608,4.0078,249.55,249.52,0.02564341]
[1737687994915,4.1118,249.56,249.52,0.02564341]
[1737687995219,4.0076,249.56,249.52,0.02564341]
[1737687995420,0.02886524,249.57,249.52,0.02564341]
[1737687996016,4.0081,249.53,249.52,0.02564341]
[1737687998018,0.02886524,249.57,249.43,14.7741479]
[1737687998218,14.7741479,249.63,249.39,14.7741479]
[1737687998921,14.7741479,249.59,249.39,14.7741479]
[1737687999225,0.02589317,249.51,249.39,14.7741479]
[1737687999823,0.02589317,249.51,249.4,4.0102]
[1737688000222,4.0097,249.43,249.37,5.1502]
[1737688000419,14.7741479,249.55,249.34,109.72933551]
[1737688000619,0.02642758,249.42,249.34,109.72933551]
[1737688000815,2.6702,249.5,249.34,109.72933551]
[1737688001123,2.6702,249.5,249.31,14.7741479]
[1737688001124,0.02893639,249.4,249.31,14.7741479]
[1737688001521,0.02893639,249.4,249.28,109.72933551]
[1737688001916,4.0109,249.36,249.28,109.72933551]
[1737688002122,0.02893639,249.4,249.28,109.72933551]
[1737688002424,0.02940448,249.36,249.28,109.72933551]
[1737688002719,14.7741479,249.47,249.28,109.72933551]
[1737688002925,0.03078524,249.34,249.28,109.72933551]
[1737688003123,14.7741479,249.47,249.28,109.72933551]
[1737688003320,0.0270611,249.33,249.28,109.72933551]
[1737688003824,4.137,249.46,249.31,14.7741479]
[1737688005124,0.02874317,249.41,249.36,0.02852438]
[1737688005624,0.02874317,249.41,249.36,4.03932438]
[1737688006326,0.02874317,249.41,249.39,4.0103]
[1737688006516,4.3807,249.63,249.4,14.7741479]
[1737688006716,4.3807,249.63,249.37,2.5674]
[1737688006717,4.3807,249.63,249.45,14.7741479]
[1737688007621,0.03071107,249.56,249.52,0.02631756]
[1737688010531,4.03841107,249.56,249.52,0.02631756]
[1737688010731,0.03071107,249.56,249.52,0.02631756]
[1737688011029,4.0079,249.54,249.52,0.02631756]
[1737688011525,4.0084,249.52,249.4,14.7741479]
[1737688011730,4.0084,249.52,249.37,6.6295]
[1737688011731,14.7741479,249.61,249.37,6.6295]
[1737688012122,14.7741479,249.61,249.46,4.0092]
[1737688012726,0.02899681,249.56,249.51,0.03080927]
[1737688013129,4.0081,249.53,249.51,0.03080927]
[1737688014731,0.02899681,249.56,249.33,2.6706]
[1737688015036,14.7741479,249.52,249.33,2.6706]
[1737688015237,2.5093,249.51,249.33,2.6706]
[1737688015729,2.5093,249.51,249.37,4.0106]
[1737688015925,0.02734236,249.44,249.33,2.6706]
[1737688017030,4.0099,249.42,249.36,4.0108]
[1737688017228,0.02734236,249.44,249.36,4.0108]
[1737688017427,0.02734236,249.44,249.27,10.7029]
[1737688017632,4.0097,249.44,249.32,4.0114]
[1737688017938,0.0302568,249.38,249.27,10.7029]
[1737688018132,0.0302568,249.38,249.29,14.7741479]
[1737688020439,4.1537,249.5,249.37,14.7741479]
[1737688021137,4.1537,249.5,249.33,14.7741479]
[1737688021436,4.0105,249.38,249.29,14.7741479]
[1737688021942,0.02974482,249.36,249.31,0.03061154]
[1737688022141,0.02974482,249.36,249.31,4.04221154]
[1737688022638,4.04054482,249.36,249.31,0.03061154]
[1737688023141,0.02974482,249.36,249.31,0.03061154]
[1737688024142,0.02974482,249.36,249.35,4.011]
[1737688027144,4.0084,249.52,249.43,4.0096]
[1737688027338,4.2948,249.56,249.38,3.74]
[1737688027533,4.2948,249.56,249.44,14.7741479]
[1737688027838,2.6843,249.6,249.44,14.7741479]
[1737688028340,0.02659557,249.54,249.52,4.0082]
[1737688028540,0.02659557,249.54,249.5,0.0268019]
[1737688030943,4.0089,249.49,249.39,2.6726]
[1737688031537,4.0089,249.49,249.41,4.0099]
[1737688031733,4.0085,249.51,249.39,2.6726]
[1737688031943,14.7741479,249.6,249.4,4.0101]
[1737688032237,4.0091,249.47,249.43,0.02671554]
[1737688032438,0.02622469,249.52,249.38,7.7504]
[1737688032637,14.7741479,249.6,249.43,0.02825113]
[1737688032937,4.03963751,249.47,249.38,3.74]
[1737688033137,4.0092,249.47,249.38,3.74]
[1737688033337,0.02813903,249.45,249.41,4.01]
[1737688033543,14.7741479,249.6,249.41,4.01]
[1737688033845,0.02822087,249.45,249.43,4.0096]
[1737688034043,14.7741479,249.6,249.43,4.0096]
[1737688034238,0.02803008,249.46,249.43,4.0096]
[1737688034435,14.7741479,249.6,249.49,0.02677489]
[1737688034634,14.7741479,249.6,249.43,4.0096]
[1737688034838,0.02715688,249.57,249.52,0.02585898]
[1737688035039,0.02715688,249.57,249.44,4.0095]
[1737688035236,14.7741479,249.6,249.38,3.74]
[1737688035434,14.7741479,249.55,249.36,14.7741479]
[1737688035639,2.7416,249.54,249.36,14.7741479]
[1737688036244,0.02656369,249.47,249.39,4.0103]
[1737688036446,0.02656369,249.47,249.36,14.7741479]
[1737688037338,0.02656369,249.47,249.42,4.0098]
[1737688037745,4.0092,249.46,249.35,14.80851394]
[1737688037939,0.02656369,249.47,249.3,14.80851394]
[1737688038142,4.4032,249.45,249.26,5.0228]
[1737688038348,0.02690135,249.41,249.24,25.28203772]
[1737688038648,4.4032,249.45,249.31,4.0116]
[1737688038842,4.0105,249.38,249.24,14.80851394]
[1737688039047,0.02843657,249.4,249.24,14.80851394]
[1737688039341,4.0104,249.39,249.24,14.80851394]
[1737688039548,0.02802677,249.34,249.24,14.80851394]
[1737688041146,0.02802677,249.34,249.33,4.0113]
[1737688041651,0.02802677,249.34,249.23,14.81687401]
[1737688042651,4.0116,249.32,249.24,4.0127]
[1737688043047,0.02802677,249.34,249.23,14.81687401]
[1737688043249,0.02802677,249.34,249.28,4.0121]
[1737688043550,0.02802677,249.34,249.23,14.81687401]
[1737688043750,0.02802677,249.34,249.29,4.0119]
[1737688044050,0.02802677,249.34,249.23,14.81687401]
[1737688044953,0.02802677,249.34,249.25,4.0125]
[1737688046148,4.03922677,249.34,249.25,4.0125]
[1737688046954,4.03922677,249.34,249.26,4.0124]
[1737688047154,0.02802677,249.34,249.23,14.81687401]
[1737688047352,0.02802677,249.34,249.32,4.0114]
[1737688048071,0.02802677,249.34,249.3,4.0117]
[1737688048278,0.02802677,249.34,249.23,14.81687401]
[1737688048658,0.02802677,249.34,249.32,4.0114]
[1737688049157,0.02802677,249.34,249.23,14.81687401]
[1737688049356,0.02802677,249.34,249.33,4.0113]
[1737688050452,0.02802677,249.34,249.31,4.0115]
[1737688050954,0.02802677,249.34,249.28,14.81687401]
[1737688051156,0.02802677,249.34,249.29,4.0118]
[1737688051350,0.02802677,249.34,249.24,14.81687401]
[1737688053152,0.02802677,249.34,249.33,4.0113]
[1737688054359,4.4032,249.45,249.39,4.0102]
[1737688054860,4.4032,249.45,249.4,4.0102]
[1737688055060,5.2849,249.51,249.32,14.81687401]
[1737688055259,4.4124,249.55,249.36,14.81687401]
[1737688055460,0.02608628,249.44,249.43,4.0096]
[1737688055859,0.02619669,249.46,249.41,0.03062787]
[1737688056057,0.02619669,249.46,249.43,4.0096]
[1737688056859,0.02619669,249.46,249.44,4.0095]
[1737688057055,9.669e-05,249.46,249.44,4.0095]
[1737688057456,9.669e-05,249.46,249.44,18.82637401]
[1737688058961,9.669e-05,249.46,249.41,0.03062787]
[1737688059357,9.669e-05,249.46,249.44,4.0095]
[1737688059759,9.669e-05,249.46,249.45,9.24987554]
[1737688061755,9.669e-05,249.46,249.44,4.0095]
[1737688064558,9.669e-05,249.46,249.41,14.83202279]
[1737688065566,9.669e-05,249.46,249.44,4.0095]
[1737688067168,9.669e-05,249.46,249.45,4.0094]
[1737688068766,5.2849,249.58,249.45,14.80139492]
[1737688068970,4.1484,249.63,249.54,4.0079]
[1737688069170,4.0068,249.61,249.45,14.80139492]
[1737688069370,4.1484,249.63,249.56,4.0076]
[1737688069569,4.1484,249.63,249.46,5.3011]
[1737688069972,0.02938411,249.57,249.52,0.02665045]
[1737688070775,0.02938411,249.57,249.53,4.008]
[1737688073578,0.02938411,249.57,249.52,0.02665045]
[1737688073785,0.02938411,249.57,249.53,4.0081]
[1737688075187,0.02938411,249.57,249.54,4.0079]
[1737688075885,0.02938411,249.57,249.52,0.02665045]
[1737688076479,0.02938411,249.57,249.54,4.0078]
[1737688076679,0.02938411,249.57,249.52,0.02665045]
[1737688077280,0.02938411,249.57,249.54,4.0078]
[1737688079091,205.80139492,249.77,249.54,14.80139492]
[1737688079284,3.9782,249.72,249.54,14.80139492]
[1737688079889,14.80139492,249.69,249.46,5.3011]
[1737688080294,0.02660483,249.6,249.55,0.02870962]
[1737688080789,4.0076,249.56,249.55,0.02870962]
[1737688081585,0.02660483,249.6,249.45,14.80139492]
[1737688081791,2.5031,249.59,249.41,18.96839492]
[1737688082085,2.6997,249.58,249.41,14.80139492]
[1737688082391,2.6997,249.58,249.41,18.81129492]
[1737688082597,2.6997,249.58,249.41,14.80139492]
[1737688082985,0.02791633,249.52,249.47,0.02592653]
[1737688084186,4.0085,249.51,249.47,0.02592653]
[1737688084591,0.02791633,249.52,249.36,9.25213807]
[1737688084888,9.25213807,249.55,249.36,9.25213807]
[1737688085690,4.0092,249.47,249.36,9.25213807]
[1737688085990,4.0092,249.47,249.43,0.0282552]
[1737688086389,0.02874603,249.48,249.43,0.0282552]
[1737688088794,0.02874603,249.48,249.43,4.0377552]
[1737688088995,0.02874603,249.48,249.43,0.0282552]
[1737688089490,0.02874603,249.48,249.46,4.0091]
[1737688090186,0.02874603,249.48,249.43,0.0282552]
[1737688091289,0.02874603,249.48,249.43,4.0379552]
[1737688091684,0.02874603,249.48,249.43,0.0282552]
[1737688092689,9.2808841,249.48,249.32,9.25213807]
[1737688092896,5.0931,249.47,249.31,4.0115]
[1737688093091,5.0931,249.47,249.28,118.98147358]
[1737688093399,9.25213807,249.44,249.28,118.98147358]
[1737688093895,4.0115,249.32,249.28,109.72933551]
[1737688094193,4.0115,249.32,249.25,4.0125]
[1737688094396,4.03896954,249.32,249.25,4.0125]
[1737688094792,4.0118,249.3,249.2,9.25213807]
[1737688095094,0.02746954,249.32,249.2,9.25213807]
[1737688095298,4.0124,249.27,249.19,109.72933551]
[1737688095497,9.27960761,249.32,249.19,109.72933551]
[1737688095693,19.92881148,249.35,249.19,109.72933551]
[1737688095890,0.02631328,249.28,249.2,4.0133]
[1737688096093,0.02631328,249.28,249.19,109.72933551]
[1737688096896,0.02631328,249.28,249.16,14.83571148]
[1737688097095,4.03851328,249.28,249.19,4.0135]
[1737688097794,0.02631328,249.28,249.16,14.83571148]
[1737688097998,0.02631328,249.28,249.17,4.0138]
[1737688098499,0.02631328,249.28,249.14,2.5016]
[1737688098500,4.0125,249.26,249.18,4.0137]
[1737688098799,0.02631328,249.28,249.09,2.7596]
[1737688099006,4.0132,249.22,249.14,4.0143]
[1737688099300,0.0282231,249.21,249.09,2.7596]
[1737688099500,0.0282231,249.21,249.15,4.0141]
[1737688099700,0.0282231,249.21,249.13,0.02010833]
[1737688101502,0.0282231,249.21,249.18,4.0137]
[1737688101894,4.0134,249.2,249.13,0.02010833]
[1737688102097,0.0282231,249.21,249.13,0.02010833]
[1737688102294,4.2913,249.19,249.13,0.02010833]
[1737688102502,2.6171,249.18,249.13,0.02010833]
[1737688103005,4.0143,249.15,249.13,0.02010833]
[1737688103399,2.6171,249.18,249.0,14.83571148]
[1737688103600,4.0148,249.12,249.0,14.83571148]
[1737688104102,4.0145,249.14,249.05,4.0158]
[1737688104302,2.6171,249.18,249.05,4.0158]
[1737688104603,0.02940552,249.14,248.96,14.83571148]
[1737688104800,0.02940552,249.14,248.92,280.45655719]
[1737688105097,0.02796771,249.05,248.92,280.45655719]
[1737688105302,0.02796771,249.05,248.92,265.62084571]
[1737688105499,0.02796771,249.05,248.89,5.1348]
[1737688105906,14.83571148,249.13,248.89,5.1348]
[1737688106204,0.02585181,248.99,248.89,5.1348]
[1737688106503,0.02585181,248.99,248.93,4.0177]
[1737688106904,4.017,248.98,248.89,4.0183]
[1737688107205,0.02585181,248.99,248.75,16.79297044]
[1737688107504,14.83571148,249.0,248.75,16.79297044]
[1737688107505,5.2935,248.97,248.75,16.79297044]
[1737688107904,0.02795836,248.91,248.8,4.0197]